bitfinex/quotes_ETHUSD_20250508
["timestamp","ask_amount","ask_price","bid_price","bid_amount"]
[1746728817439,4.86981647,2053.5,2053.3,3.526]
[1746728817619,4.86960953,2053.6,2053.3,3.526]
[1746728818729,4.86879122,2053.9,2053.3,3.526]
[1746728818927,4.86966033,2053.6,2053.3,3.526]
[1746728819124,4.86975192,2053.5,2053.3,3.526]
[1746728819331,4.86965001,2053.6,2053.3,3.526]
[1746728819929,5.47397902,2053.8,2053.3,3.526]
[1746728820136,4.86995621,2053.5,2053.2,4.2708]
[1746728820333,4.87044613,2053.2,2053.1,3.56]
[1746728820635,4.87044613,2053.2,2053.0,6.11]
[1746728820636,4.87059374,2053.2,2052.7,13.25686811]
[1746728820835,4.8709582,2053.0,2052.6,15.31955934]
[1746728821026,4.8709582,2053.0,2052.6,9.20955934]
[1746728821632,4.87123774,2052.9,2052.6,4.3377]
[1746728821833,4.87110146,2053.0,2052.6,4.3377]
[1746728822018,4.87110146,2053.0,2052.6,9.20956459]
[1746728822626,4.87126091,2052.9,2052.6,4.3377]
[1746728822825,4.87131404,2052.9,2052.6,4.3377]
[1746728823206,4.87163248,2052.7,2052.6,3.56]
[1746728823933,4.87196593,2052.6,2052.3,0.7585]
[1746728824141,0.7999,2053.3,2052.3,7.2625]
[1746728824446,4.87035342,2053.3,2052.9,0.7585]
[1746728824604,4.87053153,2053.2,2052.9,0.7585]
[1746728824946,5.66943526,2053.6,2052.9,0.7585]
[1746728824947,0.7999,2053.6,2053.1,4.87066576]
[1746728825150,4.86984069,2053.5,2053.1,4.87066576]
[1746728825331,4.86964164,2053.6,2053.2,4.87043892]
[1746728825503,4.86964164,2053.6,2053.1,4.87055431]
[1746728825701,4.86975701,2053.5,2053.1,4.87055431]
[1746728825906,4.86902327,2053.8,2053.1,1.15763218]
[1746728826238,4.87031208,2053.3,2053.1,3.504]
[1746728827045,4.8700533,2053.4,2053.1,3.504]
[1746728827252,4.86902327,2053.8,2053.2,4.87034852]
[1746728827412,4.86960377,2053.6,2053.3,0.8006]
[1746728827851,9.73933704,2053.6,2053.3,0.8006]
[1746728828401,4.86949923,2053.6,2053.3,0.8006]
[1746728828609,4.86961394,2053.6,2053.3,0.8006]
[1746728829427,4.86975538,2053.5,2053.3,0.8006]
[1746728830508,3.7999,2053.9,2053.3,0.8006]
[1746728830709,4.86947664,2053.7,2053.3,0.8006]
[1746728830914,4.86972639,2053.6,2053.3,0.8006]
[1746728831114,4.86988191,2053.5,2053.3,0.8006]
[1746728833450,4.86988191,2053.5,2053.3,4.2786]
[1746728833747,4.86988191,2053.5,2053.2,3.475]
[1746728834042,4.86985906,2053.5,2053.2,3.475]
[1746728834257,4.86963936,2053.6,2053.2,8.34541493]
[1746728834550,4.86976858,2053.5,2053.2,3.475]
[1746728836152,4.86997261,2053.4,2053.2,3.475]
[1746728836664,4.86962162,2053.6,2053.2,8.34544563]
[1746728837158,4.86966754,2053.6,2053.2,8.3453512]
[1746728837358,9.73936681,2053.6,2053.2,8.3453512]
[1746728837555,4.86975692,2053.5,2053.2,3.475]
[1746728837849,9.74018136,2053.4,2053.2,3.457]
[1746728838144,4.86984587,2053.5,2053.2,3.457]
[1746728838721,4.86968782,2053.6,2053.2,3.457]
[1746728838913,4.87007733,2053.4,2053.2,3.457]
[1746728839358,0.65355743,2053.7,2053.2,3.457]
[1746728839569,4.86865318,2054.0,2053.5,5.65813459]
[1746728839732,4.86865318,2054.0,2053.6,4.91805891]
[1746728839921,4.86865318,2054.0,2053.7,3.456]
[1746728840232,4.86868843,2054.0,2053.6,4.91816373]
[1746728840442,5.69607689,2054.2,2053.5,9.11304573]
[1746728840637,4.86865061,2054.0,2053.5,9.11309589]
[1746728840816,4.86868382,2054.0,2053.6,4.8694714]
[1746728841269,4.86880782,2053.9,2053.5,9.11298225]
[1746728841619,4.86902767,2053.8,2053.5,4.2434]
[1746728841819,4.86880782,2053.9,2053.5,4.2434]
[1746728841820,4.86891183,2053.9,2053.5,4.2434]
[1746728842019,4.86891183,2053.9,2053.5,5.96031]
[1746728842218,4.86891183,2053.9,2053.5,10.82989264]
[1746728843341,4.86863197,2054.0,2053.6,4.86939215]
[1746728843648,4.86863197,2054.0,2053.6,4.86934349]
[1746728843836,5.69618857,2054.2,2053.7,4.86922023]
[1746728843837,4.86846009,2054.1,2053.7,4.86922023]
[1746728844457,4.86818857,2054.2,2053.7,4.86922023]
[1746728844458,4.86819419,2054.2,2053.9,0.7773]
[1746728844757,0.7797,2054.4,2053.9,0.7773]
[1746728844961,4.86816908,2054.2,2053.9,0.7773]
[1746728845346,4.8683313,2054.1,2053.9,0.7773]
[1746728846857,4.86817522,2054.2,2053.9,0.7773]
[1746728849582,4.86834806,2054.1,2053.9,0.7773]
[1746728849867,4.86854917,2054.0,2053.9,0.7773]
[1746728850068,4.86854917,2054.0,2053.4,0.7577]
[1746728850069,0.55,2053.9,2053.4,0.7577]
[1746728850282,4.86973459,2053.5,2053.4,0.7577]
[1746728850452,0.8018,2054.0,2053.4,0.7577]
[1746728850625,4.86933708,2053.7,2053.4,0.7577]
[1746728850833,5.67038422,2054.0,2053.4,0.7577]
[1746728851067,4.86956699,2053.6,2053.4,0.7577]
[1746728851270,5.12345235,2054.2,2053.4,5.62746073]
[1746728851271,4.86906472,2053.8,2053.4,5.62746073]
[1746728851431,4.86906472,2053.8,2053.4,0.7577]
[1746728851644,4.8694507,2053.7,2053.4,0.7577]
[1746728851963,4.8694507,2053.7,2053.4,2.45110974]
[1746728852163,4.86950378,2053.6,2053.4,0.7577]
[1746728852375,4.86973459,2053.5,2053.4,4.1917]
[1746728852540,4.86973459,2053.5,2053.4,3.434]
[1746728852740,4.86973459,2053.5,2053.2,7.2409]
[1746728853281,9.73936044,2053.6,2053.2,12.11132666]
[1746728853479,4.86975318,2053.5,2053.2,7.2409]
[1746728854391,4.86963371,2053.6,2053.2,7.2409]
[1746728854573,4.86961789,2053.6,2053.2,12.16000493]
[1746728854779,4.86961789,2053.6,2053.2,7.2409]
[1746728854981,4.86982737,2053.5,2053.2,7.2409]
[1746728855858,4.86988945,2053.5,2053.2,7.2409]
[1746728856175,4.86988945,2053.5,2053.2,8.7989625]
[1746728857155,4.86988945,2053.5,2053.2,7.2409]
[1746728857658,4.86988945,2053.5,2053.2,7.2229]
[1746728859405,4.86960974,2053.6,2053.2,7.2229]
[1746728859599,5.69110894,2053.9,2053.5,4.86957662]
[1746728859600,4.86883303,2053.9,2053.5,4.86957662]
[1746728859765,4.86896113,2053.9,2053.5,4.86957662]
[1746728860103,4.86856778,2054.0,2053.6,0.8167]
[1746728860279,4.86880285,2053.9,2053.7,3.409]
[1746728860902,4.86812024,2054.2,2053.7,3.409]
[1746728861203,4.86902327,2053.8,2053.7,3.409]
[1746728861699,4.86885163,2053.9,2053.7,3.409]
[1746728862490,4.86902327,2053.8,2053.7,3.409]
[1746728863306,4.86896991,2053.9,2053.7,3.409]
[1746728864525,4.86902327,2053.8,2053.7,3.409]
[1746728865339,4.86890825,2053.9,2053.7,3.409]
[1746728866326,4.86902327,2053.8,2053.7,3.409]
[1746728867127,4.86889828,2053.9,2053.7,3.409]
[1746728867594,4.86902327,2053.8,2053.7,3.409]
[1746728868924,4.86890328,2053.9,2053.7,3.409]
[1746728870026,4.86858408,2054.0,2053.7,4.65803579]
[1746728870544,4.86858408,2054.0,2053.7,9.52728104]
[1746728870750,4.86899876,2053.9,2053.7,4.65803579]
[1746728871126,4.86899087,2053.9,2053.7,4.64403579]
[1746728871439,4.86899087,2053.9,2053.7,3.395]
[1746728871643,4.8687008,2054.0,2053.7,3.395]
[1746728872057,4.86880576,2053.9,2053.7,3.395]
[1746728872232,4.86902327,2053.8,2053.7,3.395]
[1746728872427,4.86894586,2053.9,2053.7,3.395]
[1746728872757,4.86902327,2053.8,2053.7,3.395]
[1746728873428,4.86894586,2053.9,2053.7,3.395]
[1746728873853,9.73795112,2053.9,2053.7,3.395]
[1746728874026,4.86894586,2053.9,2053.7,3.395]
[1746728874227,9.73792988,2053.9,2053.7,3.395]
[1746728874427,4.86894586,2053.9,2053.7,3.395]
[1746728874632,4.86865509,2054.0,2053.7,3.395]
[1746728874940,4.86878845,2053.9,2053.7,4.64262591]
[1746728875254,4.86878845,2053.9,2053.7,3.395]
[1746728875439,4.86870407,2054.0,2053.7,3.395]
[1746728875841,4.8688623,2053.9,2053.7,3.395]
[1746728877353,4.86857572,2054.0,2053.7,3.395]
[1746728877556,4.86844609,2054.1,2053.7,8.26417359]
[1746728877858,9.73592885,2054.3,2053.9,7.71492387]
[1746728878063,4.86815345,2054.2,2053.9,2.84614547]
[1746728878226,4.86815345,2054.2,2053.8,5.69169937]
[1746728879348,4.86824349,2054.2,2053.8,5.69169937]
[1746728880174,4.86833834,2054.1,2053.8,0.8228]
[1746728880387,4.86867695,2054.0,2053.8,0.8228]
[1746728880869,4.86822335,2054.2,2053.8,8.53796533]
[1746728881573,4.86801631,2054.3,2053.8,8.53781769]
[1746728881869,4.86808606,2054.2,2053.8,8.53778785]
[1746728889186,4.86808606,2054.2,2053.8,5.69164238]
[1746728889592,4.86723288,2054.6,2054.2,5.67826216]
[1746728889797,4.86699867,2054.7,2054.3,11.10683454]
[1746728890175,4.86699867,2054.7,2054.4,0.0486698]
[1746728890375,4.86699867,2054.7,2054.3,11.10683454]
[1746728890575,4.86699867,2054.7,2054.3,13.73574421]
[1746728891397,4.86699867,2054.7,2054.3,13.73571319]
[1746728891689,12.98623326,2054.8,2054.4,4.86757289]
[1746728891895,4.86692268,2054.7,2054.3,13.73574663]
[1746728893083,4.86692268,2054.7,2054.4,4.86760005]
[1746728893264,4.86699663,2054.7,2054.3,11.10688276]
[1746728893914,8.11936308,2054.8,2054.3,11.1067892]
[1746728894062,8.11936308,2054.8,2054.4,4.86759078]
[1746728894269,4.86685922,2054.8,2054.3,15.97446753]
[1746728894568,4.86685922,2054.8,2054.3,18.63974457]
[1746728895087,4.86675695,2054.8,2054.4,4.86746754]
[1746728895308,4.86657636,2054.9,2054.5,4.91601212]
[1746728895482,4.86657636,2054.9,2054.6,0.7964]
[1746728895872,4.8665225,2054.9,2054.6,0.7964]
[1746728897371,4.86631603,2055.0,2054.6,5.66350926]
[1746728897869,4.86607132,2055.1,2054.6,5.66350926]
[1746728898078,4.86636598,2055.0,2054.6,5.66350926]
[1746728898276,4.86642507,2054.9,2054.6,5.66350926]
[1746728898507,4.86642507,2054.9,2054.6,0.7964]
[1746728899473,4.86636598,2055.0,2054.6,0.7964]
[1746728899671,4.86636598,2055.0,2054.6,5.6635011]
[1746728901426,4.86636598,2055.0,2054.6,0.7964]
[1746728901900,5.91449486,2055.1,2054.6,0.7964]
[1746728902086,4.86680904,2054.8,2054.6,0.7964]
[1746728902424,4.86657558,2054.9,2054.6,0.7964]
[1746728903038,4.86657558,2054.9,2054.6,5.66352615]
[1746728903240,4.86657558,2054.9,2054.6,7.32759551]
[1746728903440,4.86657558,2054.9,2054.6,0.7964]
[1746728905844,4.86669744,2054.8,2054.6,0.7964]
[1746728906123,4.86669744,2054.8,2054.4,6.11]
[1746728906124,4.86736432,2054.5,2054.4,6.11]
[1746728906327,4.86701472,2054.7,2054.4,6.11]
[1746728906529,4.86724086,2054.6,2054.4,6.11]
[1746728907090,4.86724086,2054.6,2054.3,3.389]
[1746728907826,4.86628944,2055.0,2054.7,0.7811]
[1746728908035,4.86628944,2055.0,2054.7,5.64796134]
[1746728908342,4.86622299,2055.0,2054.7,0.7811]
[1746728908540,4.86642636,2054.9,2054.7,0.7811]
[1746728910231,4.86654203,2054.9,2054.7,0.7811]
[1746728910607,4.86628857,2055.0,2054.7,0.7811]
[1746728911931,8.65459154,2055.3,2054.8,4.91530463]
[1746728911932,4.86580522,2055.2,2054.8,4.91530463]
[1746728912127,4.86580522,2055.2,2054.8,8.30313858]
[1746728912428,4.86597048,2055.1,2054.8,3.43666412]
[1746728912629,4.86597048,2055.1,2054.8,8.25464134]
[1746728912828,4.8658176,2055.2,2054.8,8.25451401]
[1746728913008,4.8658176,2055.2,2054.8,9.91540551]
[1746728913810,4.8658176,2055.2,2054.8,5.04889062]
[1746728913811,4.86597031,2055.1,2054.8,5.04889062]
[1746728914535,4.86585327,2055.2,2054.8,9.91552952]
[1746728914830,4.86603544,2055.1,2054.8,5.04889062]
[1746728915235,4.86603544,2055.1,2054.8,3.388]
[1746728915399,4.8662579,2055.0,2054.8,3.388]
[1746728915599,4.86609797,2055.1,2054.8,3.388]
[1746728915899,9.73176114,2055.2,2054.8,8.25461613]
[1746728916107,4.86583527,2055.2,2054.8,8.25461613]
[1746728916441,4.8656827,2055.3,2054.9,1.24267161]
[1746728916627,4.8656827,2055.3,2054.9,6.15766058]
[1746728917314,4.86570971,2055.2,2054.9,1.24267161]
[1746728917645,4.86602818,2055.1,2054.9,1.24267161]
[1746728917961,4.86602818,2055.1,2054.7,13.90564043]
[1746728917962,4.86641685,2054.9,2054.7,3.391]
[1746728918147,4.86641685,2054.9,2054.5,6.11]
[1746728918355,0.7823,2055.1,2054.4,0.8099]
[1746728918356,8.26232551,2055.0,2054.4,0.8099]
[1746728918656,4.86827609,2054.2,2054.0,0.752]
[1746728918794,4.86749348,2054.5,2054.1,4.91690416]
[1746728919211,4.86774766,2054.4,2054.0,8.46656725]
[1746728919736,4.86808997,2054.2,2054.1,3.386]
[1746728919936,4.86797893,2054.3,2054.1,3.386]
[1746728920142,4.86831215,2054.1,2054.0,0.752]
[1746728920309,4.86831215,2054.1,2053.7,12.41515155]
[1746728920509,4.86831215,2054.1,2053.7,9.55898192]
[1746728920835,4.86869902,2054.0,2053.7,7.5459]
[1746728921036,4.86865241,2054.0,2053.7,7.5459]
[1746728921214,4.86873057,2054.0,2053.7,7.5459]
[1746728921534,4.86871807,2054.0,2053.7,7.5459]
[1746728921842,4.86846637,2054.1,2053.7,12.41505521]
[1746728922026,4.86846637,2054.1,2053.7,14.42810825]
[1746728922198,4.86902002,2053.9,2053.7,4.1599]
[1746728922395,5.67706269,2054.3,2053.7,4.1599]
[1746728922835,4.86887284,2053.9,2053.7,0.7699]
[1746728923039,4.86887284,2053.9,2053.5,7.71574806]
[1746728923040,4.86924245,2053.8,2053.5,6.386]
[1746728923636,4.86891099,2053.9,2053.5,11.25564567]
[1746728923841,4.86874827,2054.0,2053.6,1.54644457]
[1746728924004,4.86874827,2054.0,2053.5,14.10166132]
[1746728924222,4.86883186,2053.9,2053.5,14.10166132]
[1746728924520,4.86883186,2053.9,2053.5,9.23214547]
[1746728924930,4.86869458,2054.0,2053.5,14.10178601]
[1746728925137,4.86882116,2053.9,2053.5,14.10178601]
[1746728925346,9.73837376,2053.8,2053.5,3.386]
[1746728925504,4.86912789,2053.8,2053.5,3.386]
[1746728925843,0.8092,2054.3,2053.6,4.91807504]
[1746728925844,4.86831804,2054.1,2053.6,4.91807504]
[1746728926040,4.86831804,2054.1,2053.7,4.86925149]
[1746728926230,4.86831804,2054.1,2053.6,4.91807504]
[1746728926433,0.8092,2054.3,2053.6,0.04869268]
[1746728926434,4.8688951,2053.9,2053.6,0.04869268]
[1746728927232,4.8688951,2053.9,2053.5,11.10167635]
[1746728927429,4.8688951,2053.9,2053.5,13.11971061]
[1746728927831,4.86876831,2054.0,2053.6,4.91818319]
[1746728928027,4.86879062,2053.9,2053.5,13.11975603]
[1746728928244,4.8687016,2054.0,2053.6,4.86948479]
[1746728928442,4.8687016,2054.0,2053.7,0.7654]
[1746728928750,4.86881645,2053.9,2053.7,0.7654]
[1746728928907,4.86868432,2054.0,2053.7,0.7654]
[1746728929107,9.73746172,2054.0,2053.7,0.7654]
[1746728929441,4.86879647,2053.9,2053.7,0.7654]
[1746728930644,4.86843929,2054.1,2053.7,0.7654]
[1746728930830,4.86841143,2054.1,2053.7,9.86923069]
[1746728931031,4.8686275,2054.0,2053.7,5.00005194]
[1746728931348,5.9993285,2054.0,2053.7,5.00005194]
[1746728931851,1.130701,2054.0,2053.7,5.00005194]
[1746728932011,5.99927048,2054.0,2053.7,9.86928359]
[1746728932354,5.99927048,2054.0,2053.7,5.00005194]
[1746728932948,1.130701,2054.0,2053.8,4.86901563]
[1746728933164,1.130701,2054.0,2053.9,7.71493168]
[1746728933343,1.130701,2054.0,2053.9,11.10093168]
[1746728933539,1.130701,2054.0,2053.9,11.86143168]
[1746728933851,1.130701,2054.0,2053.9,14.86143168]
[1746728934053,1.130701,2054.0,2053.9,18.16994619]
[1746728936145,1.130701,2054.0,2053.9,15.32380072]
[1746728936348,1.130701,2054.0,2053.9,18.16994619]
[1746728938043,1.130701,2054.0,2053.9,10.5295]
[1746728938974,1.130701,2054.0,2053.9,15.39828621]
[1746728939186,1.130701,2054.0,2053.9,18.24443168]
[1746728941977,1.12425002,2054.0,2053.9,18.24443168]
[1746728942636,1.12425002,2054.0,2053.9,15.39828621]
[1746728943270,1.12425002,2054.0,2053.9,3.386]
[1746728944476,1.12425002,2054.0,2052.5,0.8284]
[1746728944477,5.41878621,2053.9,2052.5,0.8284]
[1746728944645,0.7548,2053.1,2052.5,8.54647085]
[1746728944833,4.87101738,2053.0,2052.6,0.04871311]
[1746728945033,4.87101738,2053.0,2052.6,3.0]
[1746728945034,4.87117828,2052.9,2052.6,3.0]
[1746728945341,0.7548,2053.1,2052.6,3.0]
[1746728945567,4.87054247,2053.2,2052.7,8.87226037]
[1746728945968,9.74120112,2053.2,2052.7,8.87226037]
[1746728946147,4.87071222,2053.1,2052.7,8.87226037]
[1746728946350,4.87058743,2053.2,2052.7,8.87226037]
[1746728946665,4.87058743,2053.2,2052.7,15.64031793]
[1746728946868,4.87058743,2053.2,2052.8,2.05121635]
[1746728947570,4.86985242,2053.5,2053.1,7.71681192]
[1746728947747,4.86985242,2053.5,2053.1,2.84614547]
[1746728947950,5.67181664,2053.6,2053.1,2.84614547]
[1746728948169,4.86939883,2053.7,2053.2,4.87032178]
[1746728948482,4.86892823,2053.9,2053.5,7.71574818]
[1746728948783,5.99293899,2054.0,2053.7,2.84614547]
[1746728949081,1.12425002,2054.0,2053.7,2.84614547]
[1746728949287,5.9928386,2054.0,2053.5,7.71577871]
[1746728949489,5.9928386,2054.0,2053.5,12.58530908]
[1746728949649,5.9928386,2054.0,2053.6,1.34111091]
[1746728950085,5.9928386,2054.0,2053.6,6.21055584]
[1746728950950,1.12425002,2054.0,2053.6,6.21046141]
[1746728951285,1.12425002,2054.0,2053.7,4.86923551]
[1746728951673,1.12425002,2054.0,2053.6,4.86929711]
[1746728951987,5.99280181,2054.0,2053.6,5.92576862]
[1746728952584,4.86890118,2053.9,2053.5,10.97963399]
[1746728952884,1.12425002,2054.0,2053.6,4.86929326]
[1746728953092,1.12425002,2054.0,2053.7,4.86907129]
[1746728953788,1.12425002,2054.0,2053.6,4.86934666]
[1746728954156,1.12425002,2054.0,2053.8,4.86890817]
[1746728954469,1.12425002,2054.0,2053.9,13.86329033]
[1746728954787,1.12425002,2054.0,2053.9,13.81460349]
[1746728957693,1.12425002,2054.0,2053.9,12.07268621]
[1746728958192,1.12425002,2054.0,2053.9,18.53935582]
[1746728958891,1.12425002,2054.0,2053.9,23.6622731]
[1746728959184,1.12425002,2054.0,2053.9,27.43839832]
[1746728964502,0.44166221,2054.0,2053.9,27.98839832]
[1746728965200,0.44166221,2054.0,2053.9,58.84713032]
[1746728965503,0.44166221,2054.0,2053.9,39.89663632]
[1746728966404,0.44166221,2054.0,2053.9,27.43639832]
[1746728967072,0.44166221,2054.0,2053.9,22.31348104]
[1746728967608,0.44166221,2054.0,2053.9,27.43639832]
[1746728969593,0.17408822,2054.0,2053.9,59.75116732]
[1746728969793,0.17408822,2054.0,2053.9,42.40652732]
[1746728971301,5.04263739,2054.0,2053.2,2.09448549]
[1746728971519,0.7871,2053.9,2053.6,4.86932467]
[1746728971813,0.17408822,2054.0,2053.9,4.86878621]
[1746728972001,0.17408822,2054.0,2053.8,4.86902327]
[1746728972002,0.17408822,2054.0,2053.8,8.24692574]
[1746728972316,0.17408822,2054.0,2053.9,4.86878621]
[1746728972996,0.17408822,2054.0,2053.9,11.24878621]
[1746728973167,0.17408822,2054.0,2053.9,14.23367158]
[1746728975309,0.17408822,2054.0,2053.9,11.24878621]
[1746728975613,0.17408822,2054.0,2053.9,6.377]
[1746728976670,0.17408822,2054.0,2053.9,11.24578621]
[1746728976872,0.17408822,2054.0,2053.9,6.377]
[1746728978310,0.17408822,2054.0,2053.9,11.24578621]
[1746728979376,0.17408822,2054.0,2053.9,12.64007812]
[1746728979783,0.17408822,2054.0,2053.9,13.45837812]
[1746728981093,0.17408822,2054.0,2053.9,9.26307812]
[1746728981293,0.17408822,2054.0,2053.9,14.62578621]
[1746728982086,0.17408822,2054.0,2053.9,20.73578621]
[1746728985895,0.17408822,2054.0,2053.9,21.56638621]
[1746728986102,0.17408822,2054.0,2053.9,34.84346621]
[1746728986533,0.17408822,2054.0,2053.9,33.17731621]
[1746728987559,0.17408822,2054.0,2053.9,33.05709779]
[1746728987845,0.17408822,2054.0,2053.9,26.40616779]
[1746728990131,0.8198,2054.7,2054.6,4.86712742]
[1746728990321,4.8653199,2055.4,2055.0,4.86609316]
[1746728990524,4.86547251,2055.3,2054.8,6.11]
[1746728990736,4.86570911,2055.2,2054.8,10.97653835]
[1746728990939,0.8198,2055.1,2054.9,4.86640621]
[1746728991658,0.8198,2055.1,2054.9,4.86624159]
[1746728991832,0.7752,2055.3,2055.1,4.86584872]
[1746728992148,0.7752,2055.3,2055.1,3.375]
[1746728992858,4.8657065,2055.2,2055.1,3.375]
[1746728995753,5.64088841,2055.3,2054.9,6.749]
[1746728995754,4.86638879,2055.0,2054.9,6.749]
[1746728996335,4.86638879,2055.0,2054.9,3.375]
[1746728996657,5.9208803,2055.0,2054.9,3.375]
[1746728998046,0.8125,2055.1,2054.9,3.375]
[1746728999030,4.86570683,2055.2,2054.9,3.375]
[1746728999363,4.86571383,2055.2,2054.9,8.24140308]
[1746728999666,5.65389125,2055.3,2054.9,8.24140308]
[1746728999878,4.86585121,2055.2,2054.9,3.375]
[1746729000079,5.91782452,2055.2,2054.9,3.375]
[1746729000234,4.86605417,2055.1,2054.9,3.375]
[1746729000569,5.68748004,2055.0,2054.9,6.748]
[1746729001939,5.68748004,2055.0,2054.9,3.375]
[1746729002140,4.86665368,2054.8,2054.7,6.11]
[1746729002347,0.7625,2054.7,2054.4,6.748]
[1746729002558,4.86713309,2054.6,2054.4,6.748]
[1746729002730,4.86713309,2054.6,2054.2,6.11]
[1746729002931,4.86714295,2054.6,2054.2,17.72596538]
[1746729003270,1.05544573,2054.8,2054.2,17.72596538]
[1746729003271,5.63022414,2054.4,2054.2,9.485]
[1746729003431,4.86783819,2054.3,2054.2,3.375]
[1746729003636,5.63019879,2054.4,2054.2,3.375]
[1746729004469,0.8261,2054.6,2054.4,4.86740996]
[1746729004677,4.86690607,2054.7,2054.4,3.0]
[1746729004876,4.86727068,2054.6,2054.2,8.24295719]
[1746729005177,5.69381916,2054.4,2054.1,9.747]
[1746729005533,0.8261,2054.4,2054.1,11.61519567]
[1746729005861,0.8222,2054.7,2054.3,4.86763264]
[1746729006049,4.86732188,2054.6,2054.2,3.0]
[1746729006381,4.86753721,2054.5,2054.1,6.747]
[1746729006545,5.69027516,2054.2,2054.1,3.375]
[1746729008887,0.8222,2054.2,2053.4,6.8949]
[1746729009091,0.8222,2054.2,2053.5,3.375]
[1746729009402,4.86995293,2053.5,2053.0,8.24570578]
[1746729009547,0.56326529,2053.5,2053.1,3.372]
[1746729009752,4.86970434,2053.6,2053.1,8.24256738]
[1746729009954,0.7605,2053.9,2053.3,5.92661728]
[1746729010151,0.7605,2053.9,2053.6,4.86932423]
[1746729010393,0.7605,2054.1,2053.7,8.24113611]
[1746729010563,0.7605,2054.1,2053.7,8.24125657]
[1746729010753,5.62892519,2054.1,2053.7,9.40288223]
[1746729010955,0.7605,2054.1,2053.7,3.372]
[1746729011297,4.86867967,2054.0,2053.7,3.372]
[1746729012095,0.7605,2054.1,2053.6,3.375]
[1746729012290,5.64086035,2053.7,2053.6,3.375]
[1746729014197,0.7736,2054.3,2053.7,4.86916112]
[1746729014360,0.7736,2054.3,2054.0,4.86846633]
[1746729014586,0.7736,2054.3,2054.1,4.86827614]
[1746729014786,4.86761251,2054.4,2054.0,8.24041635]
[1746729015116,0.8172,2054.5,2054.1,8.24419389]
[1746729015117,4.86748985,2054.5,2054.1,8.24419389]
[1746729015613,4.86724885,2054.6,2054.1,8.24417167]
[1746729015813,4.86724885,2054.6,2054.2,4.86790253]
[1746729015984,4.86724885,2054.6,2054.2,4.86788491]
[1746729016180,0.8172,2054.7,2054.1,4.91746717]
[1746729016181,4.86740511,2054.5,2054.1,4.91746717]
[1746729016379,4.8672313,2054.6,2054.2,4.86803618]
[1746729016577,0.81552316,2054.7,2054.3,4.91634119]
[1746729016804,0.81552316,2054.7,2054.2,3.0]
[1746729017121,0.81552316,2054.7,2054.2,7.86801159]
[1746729017122,4.86720868,2054.6,2054.2,7.86801159]
[1746729017423,4.86716458,2054.6,2054.2,7.86788476]
[1746729017609,0.81552316,2054.7,2054.1,8.24429575]
[1746729017785,4.86817086,2054.2,2053.8,4.86892284]
[1746729017986,4.86817086,2054.2,2053.9,6.747]
[1746729018290,4.87085692,2053.1,2052.6,0.8169]
[1746729018491,9.99241474,2053.6,2052.6,0.8169]
[1746729018701,4.87102003,2053.0,2052.6,0.8169]
[1746729019010,4.86973459,2053.5,2052.4,5.94170275]
[1746729019011,4.87140784,2052.8,2052.4,5.94170275]
[1746729019211,4.87140784,2052.8,2052.4,7.99134906]
[1746729019416,5.63015958,2052.9,2052.4,19.60552113]
[1746729019818,5.63015958,2052.9,2052.4,14.73334906]
[1746729019819,4.87144486,2052.8,2052.4,14.73334906]
[1746729019994,4.87149931,2052.8,2052.4,14.73434906]
[1746729020195,0.7588,2052.9,2052.4,14.73434906]
[1746729020423,4.87104356,2053.0,2052.5,6.8325695]
[1746729020585,5.68641329,2053.1,2052.6,4.87180415]
[1746729020891,0.8155,2053.1,2052.7,4.87145422]
[1746729021091,4.87030302,2053.3,2052.7,4.92012992]
[1746729021314,4.87030302,2053.3,2052.8,4.87122531]
[1746729021898,0.8155,2053.4,2052.8,4.87122531]
[1746729022096,4.87038925,2053.3,2052.8,4.87122531]
[1746729022427,4.87056267,2053.2,2052.7,4.87147711]
[1746729023012,4.87056267,2053.2,2052.8,4.87133615]
[1746729023209,4.87037289,2053.3,2052.8,4.87133615]
[1746729023409,4.8704644,2053.2,2052.8,4.87133615]
[1746729023615,4.87069413,2053.1,2052.7,4.8716275]
[1746729024521,4.87069413,2053.1,2052.5,11.07067888]
[1746729024722,4.87069413,2053.1,2052.7,4.87159352]
[1746729025227,4.87058663,2053.2,2052.8,4.87133448]
[1746729025427,4.87058663,2053.2,2052.7,4.87159352]
[1746729025726,4.87078622,2053.1,2052.7,4.87159493]
[1746729026632,4.87058173,2053.2,2052.8,4.87138996]
[1746729027210,4.87081292,2053.1,2052.7,4.87144177]
[1746729027705,4.87056261,2053.2,2052.8,4.87139117]
[1746729028111,4.87036348,2053.3,2052.8,4.87123427]
[1746729028311,0.55,2053.6,2053.0,4.87079788]
[1746729028312,5.65108467,2053.6,2053.0,4.87079788]
[1746729028513,0.7815,2053.6,2052.9,6.745]
[1746729028838,4.87006557,2053.4,2053.0,4.87083818]
[1746729029143,4.87006557,2053.4,2053.0,6.60212729]
[1746729029344,4.87017302,2053.4,2052.9,6.745]
[1746729029547,4.87038481,2053.3,2052.9,6.745]
[1746729029747,4.87040085,2053.3,2052.9,3.373]
[1746729030151,4.87048546,2053.2,2052.9,3.373]
[1746729030351,4.87059839,2053.2,2052.9,3.373]
[1746729030722,4.87031584,2053.3,2052.9,3.373]
[1746729030723,4.87034245,2053.3,2052.9,10.87671943]
[1746729031120,4.87034245,2053.3,2052.9,3.373]
[1746729031321,4.87036061,2053.3,2052.9,8.2441571]
[1746729031635,9.7402893,2053.4,2053.0,4.87091256]
[1746729031841,0.7815,2053.6,2053.2,4.87033514]
[1746729032017,0.7815,2053.6,2053.2,9.74046929]
[1746729032224,0.7815,2053.6,2053.3,4.87016694]
[1746729032422,4.86932976,2053.7,2053.3,4.87016694]
[1746729032641,9.7388017,2053.7,2053.3,4.87016694]
[1746729032840,4.86932976,2053.7,2053.3,8.24216694]
[1746729033058,4.86932976,2053.7,2053.3,3.372]
[1746729033059,4.86950372,2053.6,2053.3,3.372]
[1746729033358,0.809,2053.8,2053.3,3.372]
[1746729033560,4.86944465,2053.7,2053.3,3.372]
[1746729033855,5.67813838,2053.8,2053.4,4.86993889]
[1746729034952,4.86890814,2053.9,2053.5,4.86960765]
[1746729035165,3.2525581,2055.0,2053.9,4.86864785]
[1746729035350,0.8158,2054.6,2054.0,6.79268297]
[1746729035521,0.8158,2054.6,2054.2,4.86797374]
[1746729035726,4.86705157,2054.7,2054.3,4.86782304]
[1746729035960,5.69551211,2054.8,2054.3,4.86780892]
[1746729036254,4.86708822,2054.7,2054.1,3.0]